fUSD/lending_fUSD_20240104
["ID","MTS","AMOUNT","RATE_DAILY","PERIOD"]
[310146118,1704383493856,-23730.97,0.00034246,2]
[310146119,1704383493867,-500.0,0.00034246,2]
[310146120,1704383493877,-9423.68,0.00034246,2]
[310146121,1704383493889,-10972.52,0.00034246,2]
[310146122,1704383493900,-553.51,0.00034246,2]
[310146123,1704383493911,-3799.42,0.00034246,2]
[310146124,1704383493921,-24318.36,0.00034246,2]
[310146125,1704383493931,-1932.66,0.00034246,2]
[310146126,1704383493941,-640.95,0.00034246,2]
[310146127,1704383493952,-3015.08,0.00034246,2]
[310146128,1704383493963,-1267.01,0.00034246,2]
[310146129,1704383493974,-1749.78,0.00034246,2]
[310146130,1704383493984,-500.0,0.00034246,2]
[310146131,1704383493995,-500.0,0.00034246,2]
[310146132,1704383494006,-513.45,0.00034246,2]
[310146133,1704383494016,-1411.28,0.00034246,2]
[310146134,1704383494027,-517.41,0.00034246,2]
[310146135,1704383494039,-1062.95,0.00034246,2]
[310146136,1704383494050,-565.01872,0.00034246,2]
[310146137,1704383494060,-399.41587265,0.00034246,2]
[310146138,1704383494071,-500.0,0.00034246,2]
[310146139,1704383494081,-500.0,0.00034246,2]
[310146140,1704383494092,-500.0,0.00034246,2]
[310146141,1704383494103,-500.0,0.00034246,2]
[310146142,1704383494114,-3700.77,0.00034246,2]
[310146143,1704383494125,-727.7,0.00034246,2]
[310146144,1704383494137,-5126.0,0.00034246,2]
[310146145,1704383494148,-2283.61,0.00034246,2]
[310146146,1704383494158,-1211.88,0.00034246,2]
[310146147,1704383494169,-500.0,0.00034246,2]
[310146148,1704383494179,-1230.09,0.00034246,2]
[310146149,1704383494189,-1468.8,0.00034246,2]
[310146150,1704383494200,-3590.95,0.00034246,2]
[310146151,1704383494211,-1555.26,0.00034246,2]
[310146152,1704383494221,-3092.57,0.00034246,2]
[310146153,1704383494232,-4974.75,0.00034246,2]
[310146154,1704383494242,-500.0,0.00034246,2]
[310146155,1704383494252,-686.38,0.00034246,2]
[310146156,1704383494262,-2190.23,0.00034246,2]
[310146157,1704383494273,-2624.79,0.00034246,2]
[310146158,1704383494283,-3516.79,0.00034246,2]
[310146159,1704383494293,-500.0,0.00034246,2]
[310146160,1704383494303,-500.0,0.00034246,2]
[310146161,1704383494313,-500.0,0.00034246,2]
[310146162,1704383494323,-6437.83,0.00034246,2]
[310146163,1704383494333,-948.35,0.00034246,2]
[310146164,1704383494342,-500.0,0.00034246,2]
[310146165,1704383494353,-4606.86,0.00034246,2]
[310146166,1704383494365,-1067.46,0.00034246,2]
[310146167,1704383494375,-706.69,0.00034246,2]
[310146168,1704383494385,-1535.74,0.00034246,2]
[310146169,1704383494397,-541.5,0.00034246,2]
[310146170,1704383494407,-2597.4,0.00034246,2]
[310146171,1704383494417,-759.67,0.00034246,2]
[310146172,1704383494427,-500.0,0.00034246,2]
[310146173,1704383494438,-207.0,0.0003438,2]
[310146174,1704383494448,-271.0,0.000344,23]
[310146175,1704383494459,-162.46684796,0.0003443,30]
[310146176,1704383494469,-875.04168843,0.00034438,23]
[310146177,1704383494480,-1336.23,0.00034456,2]
[310146178,1704383494490,-3525.84,0.00034456,2]
[310146179,1704383494501,-6019.26,0.00034456,2]
[310146180,1704383494512,-3397.48,0.00034456,2]
[310146181,1704383494523,-1947.5,0.00034456,2]
[310146182,1704383494534,-1682.52,0.00034456,2]
[310146183,1704383494545,-1189.91,0.00034456,2]
[310146184,1704383494555,-4784.68,0.00034456,2]
[310146185,1704383494566,-934.89,0.00034456,2]
[310146186,1704383494576,-985.65,0.00034456,2]
[310146187,1704383494586,-1403.95,0.00034456,2]
[310146188,1704383494596,-853.25,0.00034456,2]
[310146189,1704383494607,-1981.92,0.00034456,2]
[310146190,1704383494617,-753.63,0.00034456,2]
[310146191,1704383494627,-1272.31,0.00034456,2]
[310146192,1704383494638,-4520.67,0.00034456,2]
[310146193,1704383494648,-2090.34,0.00034456,2]
[310146194,1704383494659,-500.0,0.00034456,2]
[310146195,1704383494669,-500.0,0.00034456,2]
[310146196,1704383494679,-1472.7,0.00034456,2]
[310146197,1704383494690,-4109.60084897,0.00034495,3]
[310146198,1704383494700,-4541.31,0.00034495,2]
[310146199,1704383494711,-1001.1883615,0.00034496,2]
[310146200,1704383494721,-612.358331,0.00034496,2]
[310146201,1704383494731,-1909.0537166,0.00034496,2]
[310146202,1704383494742,-9320.1623295,0.00034496,2]
[310146203,1704383494752,-130056.7777133,0.00034496,2]
[310146204,1704383494762,-381.8107433,0.00034496,2]
[310146205,1704383494772,-151.77777,0.00034498,2]
[310146206,1704383494783,-171.50745885,0.00034511,7]
[310146207,1704383494794,-150.62022441,0.00034517,2]
[310146208,1704383494804,-151.0,0.00034519,120]
[310146209,1704383494813,-46264.27329683,0.00034519,10]
[310146210,1704383494823,-4541.31,0.00034519,2]
[310146211,1704383494834,-4541.31,0.00034519,2]
[310146212,1704383494846,-4541.31,0.00034519,2]
[310146213,1704383494856,-150.0,0.00034519,2]
[310146214,1704383494866,-684.654989,0.0003452,2]
[310146215,1704383494876,-599.528593,0.0003452,2]
[310146216,1704383494887,-1895.386889,0.0003452,2]
[310146217,1704383494897,-678.341362,0.0003452,2]
[310146218,1704383494907,-500.0,0.0003452,2]
[310146219,1704383494917,-500.0,0.0003452,2]
[310146220,1704383494928,-847.926843,0.0003452,2]
[310146221,1704383494937,-500.0,0.0003452,2]
[310146222,1704383494947,-500.0,0.0003452,2]
[310146223,1704383494958,-1356.682724,0.0003452,2]
[310146224,1704383494968,-500.0,0.0003452,2]
[310146225,1704383494978,-500.0,0.0003452,2]
[310146226,1704383494988,-365.78469135,0.0003452,2]
[310146227,1704383494998,-500.0,0.0003452,2]
[310146228,1704383495008,-500.0,0.0003452,2]
[310146229,1704383495019,-1581.45,0.0003452,2]
[310146230,1704383495029,-592.65,0.0003452,2]
[310146231,1704383495042,-500.0,0.0003452,2]
[310146232,1704383495053,-500.0,0.0003452,2]
[310146233,1704383495063,-500.0,0.0003452,2]
[310146234,1704383495074,-820.54,0.0003452,2]
[310146235,1704383495084,-500.0,0.0003452,2]
[310146236,1704383495095,-4070.048173,0.0003452,2]
[310146237,1704383495106,-500.0,0.0003452,2]
[310146238,1704383495116,-439.679709,0.0003452,2]
[310146239,1704383495128,-553.43,0.0003452,2]
[310146240,1704383495138,-500.0,0.0003452,2]
[310146241,1704383495149,-1835.21,0.0003452,2]
[310146242,1704383495159,-500.0,0.0003452,2]
[310146243,1704383495169,-532.57,0.0003452,2]
[310146244,1704383495180,-558.15,0.0003452,2]
[310146245,1704383495190,-916.08,0.0003452,2]
[310146246,1704383495200,-500.0,0.0003452,2]
[310146247,1704383495210,-500.0,0.0003452,2]
[310146248,1704383495221,-232.76981448,0.0003452,2]
[310146249,1704383495231,-500.0,0.0003452,2]
[310146250,1704383495242,-1068.71,0.0003452,2]
[310146251,1704383495252,-1645.35,0.0003452,2]
[310146252,1704383495262,-500.0,0.0003452,2]
[310146253,1704383495272,-819.52,0.0003452,2]
[310146254,1704383495282,-1289.9,0.0003452,2]
[310146255,1704383495292,-701.85,0.0003452,2]
[310146256,1704383495302,-500.0,0.0003452,2]
[310146257,1704383495312,-592.8,0.0003452,2]
[310146258,1704383495322,-1192.37,0.0003452,2]
[310146259,1704383495333,-515.52,0.0003452,2]
[310146260,1704383495343,-500.0,0.0003452,2]
[310146261,1704383495353,-334.84570533,0.0003452,2]
[310146262,1704383495363,-500.0,0.0003452,2]
[310146263,1704383495373,-1365.23,0.0003452,2]
[310146264,1704383495383,-500.0,0.0003452,2]
[310146265,1704383495395,-500.0,0.0003452,2]
[310146266,1704383495406,-500.0,0.0003452,2]
[310146267,1704383495415,-500.0,0.0003452,2]
[310146268,1704383495426,-500.0,0.0003452,2]
[310146269,1704383495436,-507.42,0.0003452,2]
[310146270,1704383495446,-599.75,0.0003452,2]
[310146271,1704383495457,-592.27,0.0003452,2]
[310146272,1704383495467,-500.0,0.0003452,2]
[310146273,1704383495476,-664.2,0.0003452,2]
[310146274,1704383495486,-500.0,0.0003452,2]
[310146275,1704383495496,-1043.25,0.0003452,2]
[310146276,1704383495506,-626.37,0.0003452,2]
[310146277,1704383495516,-500.0,0.0003452,2]
[310146278,1704383495526,-245.78325679,0.0003452,2]
[310146279,1704383495536,-500.0,0.0003452,2]
[310146280,1704383495546,-500.0,0.0003452,2]
[310146281,1704383495556,-917.78,0.0003452,2]
[310146282,1704383495566,-977.44,0.0003452,2]
[310146283,1704383495576,-500.0,0.0003452,2]
[310146284,1704383495586,-500.0,0.0003452,2]
[310146285,1704383495596,-500.0,0.0003452,2]
[310146286,1704383495606,-535.3,0.0003452,2]
[310146287,1704383495616,-500.0,0.0003452,2]
[310146288,1704383495626,-500.0,0.0003452,2]
[310146289,1704383495636,-573.47,0.0003452,2]
[310146290,1704383495648,-502.88,0.0003452,2]
[310146291,1704383495658,-679.66,0.0003452,2]
[310146292,1704383495668,-868.42,0.0003452,2]
[310146293,1704383495678,-500.0,0.0003452,2]
[310146294,1704383495687,-387.78995608,0.0003452,2]
[310146295,1704383495697,-500.0,0.0003452,2]
[310146296,1704383495707,-500.0,0.0003452,2]
[310146297,1704383495717,-500.0,0.0003452,2]
[310146298,1704383495726,-941.55,0.0003452,2]
[310146299,1704383495735,-1452.62,0.0003452,2]
[310146300,1704383495745,-540.38,0.0003452,2]
[310146301,1704383495755,-500.0,0.0003452,2]
[310146302,1704383495765,-500.0,0.0003452,2]
[310146303,1704383495775,-1669.57,0.0003452,2]
[310146304,1704383495784,-1419.74,0.0003452,2]
[310146305,1704383495795,-500.0,0.0003452,2]
[310146306,1704383495805,-1040.63,0.0003452,2]
[310146307,1704383495815,-1057.35,0.0003452,2]
[310146308,1704383495825,-1409.78,0.0003452,2]
[310146309,1704383495836,-786.88,0.0003452,2]
[310146310,1704383495846,-207.02671467,0.0003452,2]
[310146311,1704383495858,-1086.26,0.0003452,2]
[310146312,1704383495869,-500.0,0.0003452,2]
[310146313,1704383495880,-500.0,0.0003452,2]
[310146314,1704383495893,-532.76,0.0003452,2]
[310146315,1704383495903,-500.0,0.0003452,2]
[310146316,1704383495913,-728.75,0.0003452,2]
[310146317,1704383495924,-500.0,0.0003452,2]
[310146318,1704383495935,-500.0,0.0003452,2]
[310146319,1704383495946,-1028.01,0.0003452,2]
[310146320,1704383495956,-500.0,0.0003452,2]
[310146321,1704383495967,-803.51,0.0003452,2]
[310146322,1704383495977,-500.0,0.0003452,2]
[310146323,1704383495988,-1123.92,0.0003452,2]
[310146324,1704383495998,-517.51,0.0003452,2]
[310146325,1704383496009,-500.0,0.0003452,2]
[310146326,1704383496019,-500.0,0.0003452,2]
[310146327,1704383496030,-500.0,0.0003452,2]
[310146328,1704383496042,-720.98,0.0003452,2]
[310146329,1704383496052,-500.0,0.0003452,2]
[310146330,1704383496063,-1451.87,0.0003452,2]
[310146331,1704383496073,-648.49158716,0.0003452,2]
[310146332,1704383496083,-500.0,0.0003452,2]
[310146333,1704383496094,-678.82,0.0003452,2]
[310146334,1704383496104,-759.68,0.0003452,2]
[310146335,1704383496115,-500.0,0.0003452,2]
[310146336,1704383496126,-3071.54,0.0003452,2]
[310146337,1704383496137,-615.97,0.0003452,2]
[310146338,1704383496150,-1363.51,0.0003452,2]
[310146339,1704383496160,-566.19,0.0003452,2]
[310146340,1704383496170,-870.68,0.0003452,2]
[310146341,1704383496180,-500.0,0.0003452,2]
[310146342,1704383496191,-500.0,0.0003452,2]
[310146343,1704383496201,-535.58,0.0003452,2]
[310146344,1704383496212,-1457.23,0.0003452,2]
[310146345,1704383496222,-902.65,0.0003452,2]
[310146346,1704383496232,-500.0,0.0003452,2]
[310146347,1704383496242,-900.66,0.0003452,2]
[310146348,1704383496253,-1222.61,0.0003452,2]
[310146349,1704383496264,-573.57,0.0003452,2]
[310146350,1704383496275,-1042.2,0.0003452,2]
[310146351,1704383496285,-500.0,0.0003452,2]
[310146352,1704383496296,-500.0,0.0003452,2]
[310146353,1704383496306,-500.0,0.0003452,2]
[310146354,1704383496317,-728.74,0.0003452,2]
[310146355,1704383496327,-627.53,0.0003452,2]
[310146356,1704383496337,-746.5,0.0003452,2]
[310146357,1704383496347,-847.61,0.0003452,2]
[310146358,1704383496357,-500.0,0.0003452,2]
[310146359,1704383496368,-1537.38,0.0003452,2]
[310146360,1704383496378,-1357.77,0.0003452,2]
[310146361,1704383496388,-500.0,0.0003452,2]
[310146362,1704383496400,-1147.35,0.0003452,2]
[310146363,1704383496410,-1349.09,0.0003452,2]
[310146364,1704383496420,-1079.84,0.0003452,2]
[310146365,1704383496430,-500.0,0.0003452,2]
[310146366,1704383496441,-1513.63,0.0003452,2]
[310146367,1704383496451,-500.0,0.0003452,2]
[310146368,1704383496461,-500.0,0.0003452,2]
[310146369,1704383496471,-500.0,0.0003452,2]
[310146370,1704383496481,-511.54,0.0003452,2]
[310146371,1704383496491,-500.0,0.0003452,2]
[310146372,1704383496502,-1462.66,0.0003452,2]
[310146373,1704383496512,-500.0,0.0003452,2]
[310146374,1704383496522,-1172.19,0.0003452,2]
[310146375,1704383496533,-1990.12,0.0003452,2]
[310146376,1704383496543,-603.95,0.0003452,2]
[310146377,1704383496553,-1219.74,0.0003452,2]
[310146378,1704383496564,-500.0,0.0003452,2]
[310146379,1704383496575,-500.0,0.0003452,2]
[310146380,1704383496585,-500.0,0.0003452,2]
[310146381,1704383496595,-500.0,0.0003452,2]
[310146382,1704383496605,-1670.1,0.0003452,2]
[310146383,1704383496615,-912.27,0.0003452,2]
[310146384,1704383496626,-500.0,0.0003452,2]
[310146385,1704383496636,-500.0,0.0003452,2]
[310146386,1704383496648,-500.0,0.0003452,2]
[310146387,1704383496659,-1474.82,0.0003452,2]
[310146388,1704383496669,-880.31,0.0003452,2]
[310146389,1704383496679,-500.0,0.0003452,2]
[310146390,1704383496689,-958.09,0.0003452,2]
[310146391,1704383496700,-1366.5,0.0003452,2]
[310146392,1704383496709,-500.0,0.0003452,2]
[310146393,1704383496719,-500.0,0.0003452,2]
[310146394,1704383496729,-574.97,0.0003452,2]
[310146395,1704383496739,-937.71,0.0003452,2]
[310146396,1704383496749,-500.0,0.0003452,2]
[310146397,1704383496758,-633.81,0.0003452,2]
[310146398,1704383496767,-937.76,0.0003452,2]
[310146399,1704383496776,-702.39,0.0003452,2]
[310146400,1704383496785,-213.51012472,0.0003452,2]
[310146401,1704383496794,-500.0,0.0003452,2]
[310146402,1704383496804,-865.04,0.0003452,2]
[310146403,1704383496813,-636.93,0.0003452,2]
[310146404,1704383496823,-819.06,0.0003452,2]
[310146405,1704383496833,-500.0,0.0003452,2]
[310146406,1704383496843,-500.0,0.0003452,2]
[310146407,1704383496856,-1417.4,0.0003452,2]
[310146408,1704383496866,-500.0,0.0003452,2]
[310146409,1704383496876,-500.0,0.0003452,2]
[310146410,1704383497099,-542.64,0.0003452,2]
[310146411,1704383497109,-2014.53,0.0003452,2]
[310146412,1704383497119,-876.9,0.0003452,2]
[310146413,1704383497128,-500.0,0.0003452,2]
[310146414,1704383497138,-500.0,0.0003452,2]
[310146415,1704383497150,-500.0,0.0003452,2]
[310146416,1704383497159,-572.05,0.0003452,2]
[310146417,1704383497169,-1000.0,0.0003452,2]
[310146418,1704383497179,-500.0,0.0003452,2]
[310146419,1704383497188,-1205.37,0.0003452,2]
[310146420,1704383497198,-604.1194867,0.0003452,2]
[310146421,1704383497208,-500.0,0.0003452,2]
[310146422,1704383497217,-648.51406697,0.0003452,2]
[310146423,1704383497227,-500.0,0.0003452,2]
[310146424,1704383497237,-674.61,0.0003452,2]
[310146425,1704383497247,-1957.4,0.0003452,2]
[310146426,1704383497257,-500.0,0.0003452,2]
[310146427,1704383497267,-695.0,0.0003452,2]
[310146428,1704383497277,-500.0,0.0003452,2]
[310146429,1704383497287,-500.0,0.0003452,2]
[310146430,1704383497296,-803.55,0.0003452,2]
[310146431,1704383497306,-500.0,0.0003452,2]
[310146432,1704383497315,-882.03,0.0003452,2]
[310146433,1704383497324,-815.47,0.0003452,2]
[310146434,1704383497334,-500.0,0.0003452,2]
[310146435,1704383497343,-500.0,0.0003452,2]
[310146436,1704383497353,-500.0,0.0003452,2]
[310146437,1704383497363,-1914.74,0.0003452,2]
[310146438,1704383497372,-500.0,0.0003452,2]
[310146439,1704383497382,-500.0,0.0003452,2]
[310146440,1704383497393,-574.34,0.0003452,2]
[310146441,1704383497402,-500.0,0.0003452,2]
[310146442,1704383497412,-500.0,0.0003452,2]
[310146443,1704383497422,-944.72,0.0003452,2]
[310146444,1704383497432,-500.0,0.0003452,2]
[310146445,1704383497441,-982.79,0.0003452,2]
[310146446,1704383497452,-500.0,0.0003452,2]
[310146447,1704383497461,-500.0,0.0003452,2]
[310146448,1704383497472,-804.81,0.0003452,2]
[310146449,1704383497482,-500.0,0.0003452,2]
[310146450,1704383497492,-1565.08,0.0003452,2]
[310146451,1704383497502,-500.0,0.0003452,2]
[310146452,1704383497512,-959.87,0.0003452,2]
[310146453,1704383497521,-305.41547494,0.0003452,2]
[310146454,1704383497532,-500.0,0.0003452,2]
[310146455,1704383497541,-700.63,0.0003452,2]
[310146456,1704383497551,-744.98,0.0003452,2]
[310146457,1704383497561,-885.49,0.0003452,2]
[310146458,1704383497570,-500.0,0.0003452,2]
[310146459,1704383497580,-500.0,0.0003452,2]
[310146460,1704383497590,-1410.46,0.0003452,2]
[310146461,1704383497600,-500.0,0.0003452,2]
[310146462,1704383497609,-500.0,0.0003452,2]
[310146463,1704383497619,-500.0,0.0003452,2]
[310146464,1704383497629,-500.0,0.0003452,2]
[310146465,1704383497639,-500.0,0.0003452,2]
[310146466,1704383497650,-957.51,0.0003452,2]
[310146467,1704383497660,-699.39,0.0003452,2]
[310146468,1704383497669,-500.0,0.0003452,2]
[310146469,1704383497679,-500.0,0.0003452,2]
[310146470,1704383497688,-1991.4,0.0003452,2]
[310146471,1704383497698,-500.0,0.0003452,2]
[310146472,1704383497707,-500.0,0.0003452,2]
[310146473,1704383497717,-553.01325706,0.0003452,2]
[310146474,1704383497726,-500.0,0.0003452,2]
[310146475,1704383497735,-500.0,0.0003452,2]
[310146476,1704383497745,-2780.73,0.0003452,2]
[310146477,1704383497754,-500.0,0.0003452,2]
[310146478,1704383497764,-564.47,0.0003452,2]
[310146479,1704383497773,-500.0,0.0003452,2]
[310146480,1704383497783,-1394.86,0.0003452,2]
[310146481,1704383497792,-1775.83,0.0003452,2]
[310146482,1704383497802,-500.0,0.0003452,2]
[310146483,1704383497811,-500.0,0.0003452,2]
[310146484,1704383497821,-652.78,0.0003452,2]
[310146485,1704383497830,-500.0,0.0003452,2]
[310146486,1704383497840,-619.2,0.0003452,2]
[310146487,1704383497850,-1405.72,0.0003452,2]
[310146488,1704383497864,-500.0,0.0003452,2]
[310146489,1704383497873,-500.0,0.0003452,2]
[310146490,1704383497883,-597.63,0.0003452,2]
[310146491,1704383497893,-1124.88,0.0003452,2]
[310146492,1704383497903,-500.0,0.0003452,2]
[310146493,1704383497913,-1115.87,0.0003452,2]
[310146494,1704383497922,-1054.91,0.0003452,2]
[310146495,1704383497932,-524.05,0.0003452,2]
[310146496,1704383497941,-500.0,0.0003452,2]
[310146497,1704383497952,-559.91,0.0003452,2]
[310146498,1704383497961,-500.0,0.0003452,2]
[310146499,1704383497971,-564.33,0.0003452,2]
[310146500,1704383497981,-685.63,0.0003452,2]
[310146501,1704383497991,-1086.48,0.0003452,2]
[310146502,1704383498001,-950.11,0.0003452,2]
[310146503,1704383498011,-500.0,0.0003452,2]
[310146504,1704383498020,-500.0,0.0003452,2]
[310146505,1704383498030,-944.61,0.0003452,2]
[310146506,1704383498040,-1757.32,0.0003452,2]
[310146507,1704383498050,-2621.71,0.0003452,2]
[310146508,1704383498060,-500.0,0.0003452,2]
[310146509,1704383498071,-1401.22,0.0003452,2]
[310146510,1704383498081,-500.0,0.0003452,2]
[310146511,1704383498091,-500.0,0.0003452,2]
[310146512,1704383498101,-500.0,0.0003452,2]
[310146513,1704383498111,-1732.27,0.0003452,2]
[310146514,1704383498120,-639.42,0.0003452,2]
[310146515,1704383498128,-1256.69,0.0003452,2]
[310146516,1704383498137,-1094.07,0.0003452,2]
[310146517,1704383498149,-500.0,0.0003452,2]
[310146518,1704383498158,-500.0,0.0003452,2]
[310146519,1704383498168,-1570.56,0.0003452,2]
[310146520,1704383498179,-739.39,0.0003452,2]
[310146521,1704383498188,-500.0,0.0003452,2]
[310146522,1704383498198,-529.45,0.0003452,2]
[310146523,1704383498207,-1294.14,0.0003452,2]
[310146524,1704383498217,-1059.98,0.0003452,2]
[310146525,1704383498227,-500.0,0.0003452,2]
[310146526,1704383498237,-574.31,0.0003452,2]
[310146527,1704383498247,-500.0,0.0003452,2]
[310146528,1704383498257,-1661.09,0.0003452,2]
[310146529,1704383498267,-500.0,0.0003452,2]
[310146530,1704383498277,-582.97,0.0003452,2]
[310146531,1704383498288,-1488.44,0.0003452,2]
[310146532,1704383498298,-576.77,0.0003452,2]
[310146533,1704383498307,-500.0,0.0003452,2]
[310146534,1704383498316,-879.94,0.0003452,2]
[310146535,1704383498326,-500.0,0.0003452,2]
[310146536,1704383498335,-539.04,0.0003452,2]
[310146537,1704383498345,-1530.35,0.0003452,2]
[310146538,1704383498355,-1484.45,0.0003452,2]
[310146539,1704383498365,-500.0,0.0003452,2]
[310146540,1704383498375,-512.24,0.0003452,2]
[310146541,1704383498386,-1403.56,0.0003452,2]
[310146542,1704383498397,-545.95,0.0003452,2]
[310146543,1704383498406,-611.8,0.0003452,2]
[310146544,1704383498416,-601.29,0.0003452,2]
[310146545,1704383498427,-630.38,0.0003452,2]
[310146546,1704383498437,-2049.38,0.0003452,2]
[310146547,1704383498448,-1841.82,0.0003452,2]
[310146548,1704383498458,-500.0,0.0003452,2]
[310146549,1704383498468,-500.0,0.0003452,2]
[310146550,1704383498478,-1046.26,0.0003452,2]
[310146551,1704383498489,-951.22,0.0003452,2]
[310146552,1704383498500,-1497.34,0.0003452,2]
[310146553,1704383498509,-735.25,0.0003452,2]
[310146554,1704383498519,-527.14,0.0003452,2]
[310146555,1704383498529,-1733.0,0.0003452,2]
[310146556,1704383498539,-643.52,0.0003452,2]
[310146557,1704383498549,-822.39,0.0003452,2]
[310146558,1704383498558,-500.0,0.0003452,2]
[310146559,1704383498568,-2670.57,0.0003452,2]
[310146560,1704383498577,-500.0,0.0003452,2]
[310146561,1704383498587,-500.0,0.0003452,2]
[310146562,1704383498597,-500.0,0.0003452,2]
[310146563,1704383498610,-3284.99,0.0003452,2]
[310146564,1704383498620,-1166.26,0.0003452,2]
[310146565,1704383498630,-971.98,0.0003452,2]
[310146566,1704383498641,-500.0,0.0003452,2]
[310146567,1704383498650,-1694.73,0.0003452,2]
[310146568,1704383498660,-685.61,0.0003452,2]
[310146569,1704383498670,-500.0,0.0003452,2]
[310146570,1704383498680,-2075.81,0.0003452,2]
[310146571,1704383498690,-500.0,0.0003452,2]
[310146572,1704383498700,-1125.46,0.0003452,2]
[310146573,1704383498709,-526.4,0.0003452,2]
[310146574,1704383498719,-1396.04,0.0003452,2]
[310146575,1704383498729,-500.0,0.0003452,2]
[310146576,1704383498739,-1060.35,0.0003452,2]
[310146577,1704383498749,-540.44,0.0003452,2]
[310146578,1704383498759,-3215.96,0.0003452,2]
[310146579,1704383498769,-500.0,0.0003452,2]
[310146580,1704383498778,-781.26,0.0003452,2]
[310146581,1704383498789,-1237.67,0.0003452,2]
[310146582,1704383498799,-500.0,0.0003452,2]
[310146583,1704383498809,-558.12,0.0003452,2]
[310146584,1704383498819,-1191.58,0.0003452,2]
[310146585,1704383498829,-525.09,0.0003452,2]
[310146586,1704383498840,-1747.39,0.0003452,2]
[310146587,1704383498851,-1747.57,0.0003452,2]
[310146588,1704383498864,-500.0,0.0003452,2]
[310146589,1704383498875,-4274.46,0.0003452,2]
[310146590,1704383498884,-2793.34,0.0003452,2]
[310146591,1704383498894,-973.72,0.0003452,2]
[310146592,1704383498904,-181.56,0.0003452,2]
[310146593,1704383498914,-1118.87,0.0003452,2]
[310146594,1704383498924,-500.0,0.0003452,2]
[310146595,1704383498935,-684.1,0.0003452,2]
[310146596,1704383498945,-500.0,0.0003452,2]
[310146597,1704383498955,-500.0,0.0003452,2]
[310146598,1704383498965,-521.83,0.0003452,2]
[310146599,1704383498976,-500.0,0.0003452,2]
[310146600,1704383498986,-676.82,0.0003452,2]
[310146601,1704383498996,-500.0,0.0003452,2]
[310146602,1704383499006,-2388.72,0.0003452,2]
[310146603,1704383499017,-1361.8,0.0003452,2]
[310146604,1704383499027,-500.0,0.0003452,2]
[310146605,1704383499037,-998.02,0.0003452,2]
[310146606,1704383499051,-500.0,0.0003452,2]
[310146607,1704383499060,-699.11,0.0003452,2]
[310146608,1704383499070,-500.0,0.0003452,2]
[310146609,1704383499080,-522.55,0.0003452,2]
[310146610,1704383499089,-841.57,0.0003452,2]
[310146611,1704383499100,-2977.6,0.0003452,2]
[310146612,1704383499111,-658.31,0.0003452,2]
[310146613,1704383499121,-612.09,0.0003452,2]
[310146614,1704383499131,-1411.68,0.0003452,2]
[310146615,1704383499141,-998.22,0.0003452,2]
[310146616,1704383499152,-1262.99,0.0003452,2]
[310146617,1704383499162,-4333.35,0.0003452,2]